{"text_format":"2","workbook":"xlsx","n_sheets":1,"sheets":["AFP"],"not_rendered":{"charts":0,"images":0,"macros":0,"external_links":0,"defined_names":18,"comments":0,"pivot_tables":0},"unopened":[],"bounds":{"document_bytes":16777216,"sheet_cells":100000,"run_cost":"one","rows_first":2000,"rows_last":500,"rows_between":2000,"halvings":0,"cell_chars":16384,"cell_head_chars":4096},"cells_cut":0,"cells_raw":0,"read":"whole","date_system":"1900"}

{"sheet":"AFP","index":0,"n_rows":37,"n_cols":9,"rows_kept":37,"cut":false,"hidden":false,"merged":[]}
["Ausgaben- und Finanzierungsplan (AFP)"]
[]
["Progamm:","Kommunales Investitionsprogramm Klimaschutz und Innovation (KIPKI) Block 1 - Wasserstoffstrategie"]
["Projekttitel:","xxx"]
["AZ:","KIP1-xxx"]
["Antragsteller:","xxx"]
[]
["1. Ausgaben-planung","Es sind Netto-Kosten anzugeben",{"$nulls":6},"Stand: TT.MM.JJJJ"]
["lfd. Nr."," Teil-Maßnahmen","AGVO"]
[null,null,"Artikel",2024,2025,2026,2027,2028,"Gesamt in €"]
[]
[null,"Projektspezifische Teil-Maßnahmen (vgl. Punkt Vorhabenbeschreibung zum Förderantrag)"]
["1.1","[z. B. Maßnahmenpaket 1 \"Elektrolyseur\"]*1","z. B. Art. 41",0,0,0,0,0,{"$f":"SUM(D13:H13)","v":0}]
["1.2","nn*2",null,0,0,0,0,0,{"$f":"SUM(D14:H14)","v":0}]
["1.3","nn",null,0,0,0,0,0,0]
["1.4","nn",null,0,0,0,0,0,0]
["1.5","nn",null,0,0,0,0,0,0]
["1.ff.","nn",null,0,0,0,0,0,0]
["Summen pro Jahr",null,null,{"$f":"SUM(D13:D18)","v":0},{"$f":"SUM(E13:E18)","v":0},0,0,0]
["Gesamtsumme",{"$nulls":7},{"$f":"SUM(I13:I18)","v":0}]
["*1 Geben Sie je Maßnahmenpaket die Kosten pro Jahr an; addieren Sie hierbei alle Kosten für Planung, Bau, Material etc. auf. "]
["   Betiteln Sie die Maßnahmepaket prägnant und mit Bezug zu Kapitel 3.1 der Vorhabenbeschreibung"]
["*2 ergänzen Sie ggf. Zeilen und lfd. Nr. je nach Anzahl Ihrer Maßnahmenpakete/Teilmaßnahmen"]
[]
[]
["2. Finanzierungs-planung"]
["lfd. Nr."]
[null,null,null,2024,2025,2026,2027,2028,"Gesamt in €"]
[]
["2.1","Eigenmittel des Antragstellenden",null,0,0,0,0,0,{"$f":"SUM(D30:H30)","v":0}]
["2.2","Drittmittel",null,0,0,0,0,0,{"$f":"SUM(D31:H31)","v":0}]
["2.3","Fördermittel (Zuwendung)",null,0,0,0,0,0,{"$f":"SUM(D32:H32)","v":0}]
[]
["Summen pro Jahr",null,null,{"$f":"SUM(D30:D32)","v":0},{"$f":"SUM(E30:E32)","v":0},0,0,0]
["Gesamtsumme",{"$nulls":7},{"$f":"SUM(I30:I32)","v":0}]
[]
["2.4.1","Fördermittel (prozentualer Anteil)",{"$nulls":6},{"$f":"I32/I35","v":{"$error":"#DIV/0!"}}]